bitfinex-derivatives/quotes_BNBF0:USTF0_20250807
["timestamp","ask_amount","ask_price","bid_price","bid_amount"]
[1754596449886,0.85207844,780.04,778.63,0.85362299]
[1754596450091,0.85207844,780.03,778.62,0.85362299]
[1754596450391,0.85207844,780.02,778.64,0.85362299]
[1754596450686,0.85207844,780.01,778.65,0.85362299]
[1754596450888,0.85207844,780.0,778.65,0.85362299]
[1754596451088,0.85207844,779.99,778.66,0.85362299]
[1754596451388,0.85999391,780.07,778.67,0.85362299]
[1754596451587,1.7133733,780.06,778.67,0.85362299]
[1754596451790,0.85337939,780.05,778.67,0.85362299]
[1754596451985,0.85999391,780.06,778.67,0.85362299]
[1754596452189,0.802,780.17,778.48,1.046]
[1754596452190,0.85999391,780.04,778.69,0.85362299]
[1754596452486,0.85337928,780.03,778.69,0.85362299]
[1754596452689,0.85337928,780.02,778.7,0.85362299]
[1754596452888,0.85337928,780.01,778.7,0.85362299]
[1754596453091,0.85337928,780.0,778.7,0.85362299]
[1754596453290,0.85337928,779.99,778.7,0.85362299]
[1754596453489,0.85337928,779.98,778.7,0.85362299]
[1754596453693,0.85337928,779.97,778.7,0.85362299]
[1754596453892,0.85337928,779.96,778.7,0.85362299]
[1754596454092,0.85337928,779.95,778.7,0.85362299]
[1754596454290,0.85337928,779.94,778.72,0.85362299]
[1754596454491,0.85448959,779.93,778.72,0.85362299]
[1754596454693,0.85448959,779.92,778.72,0.85362299]
[1754596454890,0.85448959,779.91,778.72,0.85362299]
[1754596455096,0.85448959,779.9,778.74,0.85362299]
[1754596455295,0.85448959,779.89,778.74,0.85362299]
[1754596455492,0.85448959,779.88,778.74,0.85362299]
[1754596455792,0.85448959,779.87,778.74,0.85362299]
[1754596455994,0.85448959,779.86,778.74,0.85362299]
[1754596456292,0.85448959,779.85,778.77,0.85362299]
[1754596456496,0.85448959,779.84,778.77,0.85362299]
[1754596456693,0.85448959,779.83,778.77,0.85362299]
[1754596456993,0.85448959,779.82,778.83,0.85362299]
[1754596457191,0.85448959,779.81,778.85,0.85362299]
[1754596457393,0.85448959,779.8,778.85,0.85362299]
[1754596457593,0.85999391,780.08,778.85,0.85362299]
[1754596457594,0.85448959,779.79,778.85,0.85362299]
[1754596457791,0.85448959,779.78,778.85,0.85362299]
[1754596458092,0.85448959,779.78,778.66,1.1423101]
[1754596458093,0.85448959,779.77,778.84,0.85362299]
[1754596458292,0.85448959,779.76,778.85,0.85362299]
[1754596458494,0.85448959,779.75,778.84,0.85362299]
[1754596458693,0.85448959,779.74,778.84,0.85362299]
[1754596458891,0.85448959,779.73,778.84,0.85362299]
[1754596459095,0.85448959,779.72,778.84,0.85362299]
[1754596459297,0.85448959,779.71,778.85,0.85362299]
[1754596459493,0.85448959,779.7,778.85,0.85362299]
[1754596459697,0.85999391,780.06,778.86,0.85362299]
[1754596459891,0.85554801,780.05,778.86,0.85362299]
[1754596460093,0.85554801,780.04,778.87,0.85362299]
[1754596460295,0.85999391,780.06,778.87,0.85362299]
[1754596460496,0.8556662,780.05,778.87,0.85362299]
[1754596460696,0.8556662,780.04,778.87,0.85362299]
[1754596460999,0.8556662,780.03,778.88,0.838]
[1754596461298,0.8556662,780.02,778.88,0.838]
[1754596461498,0.8556662,780.01,778.88,0.838]
[1754596461694,0.8556662,780.0,778.88,0.838]
[1754596461899,0.8556662,779.99,778.88,0.838]
[1754596462100,0.8556662,779.98,778.9,0.85362299]
[1754596462298,0.8556662,779.98,778.88,0.838]
[1754596462299,0.8556662,779.97,778.91,0.85362299]
[1754596462600,0.8556662,779.96,778.9,0.85362299]
[1754596462801,0.8556662,779.95,778.95,0.85362299]
[1754596463004,0.8556662,779.94,778.95,0.85362299]
[1754596463203,0.8556662,779.93,778.95,0.85362299]
[1754596463403,0.8556662,779.92,778.95,0.85362299]
[1754596463600,0.8556662,779.91,778.94,0.85362299]
[1754596463806,0.8556662,779.9,778.94,0.85362299]
[1754596464004,0.8556662,779.89,778.94,0.85362299]
[1754596464305,0.8556662,779.88,778.95,0.85362299]
[1754596464604,0.8556662,779.87,778.95,0.85362299]
[1754596464803,0.8556662,779.86,778.93,0.85362299]
[1754596465003,0.8556662,779.85,778.9,0.85362299]
[1754596465204,0.8556662,779.84,778.9,0.85362299]
[1754596465401,0.8556662,779.83,778.91,0.85362299]
[1754596465701,0.8556662,779.82,778.91,0.85362299]
[1754596465900,0.85999391,780.11,778.91,0.85362299]
[1754596465901,0.8556662,779.81,778.91,0.85362299]
[1754596466202,0.8556662,779.8,778.92,0.85362299]
[1754596466401,0.8556662,779.79,778.97,0.85362299]
[1754596466702,0.8556662,779.78,779.02,0.85362299]
[1754596466901,0.8556662,779.77,779.02,0.85362299]
[1754596467101,0.802,780.17,779.03,0.85362299]
[1754596467404,0.85621414,780.16,779.02,0.85362299]
[1754596467601,0.85621414,780.15,779.02,0.85362299]
[1754596467800,0.85621414,780.14,779.02,0.85362299]
[1754596468105,0.85621414,780.13,779.02,0.85362299]
[1754596468406,0.85621414,780.12,778.99,0.85362299]
[1754596468608,0.85621414,780.11,778.99,0.85362299]
[1754596468805,0.85621414,780.1,778.98,0.85362299]
[1754596469008,0.85621414,780.09,778.98,0.85362299]
[1754596469208,0.85999391,780.23,778.98,0.85362299]
[1754596469409,0.85611169,780.22,778.98,0.85362299]
[1754596469609,0.85611169,780.21,778.98,0.85362299]
[1754596469809,0.85611169,780.2,778.98,0.85362299]
[1754596470005,0.85611169,780.19,778.98,0.85362299]
[1754596470205,0.85611169,780.18,778.97,0.85362299]
[1754596470409,0.85611169,780.17,778.97,0.85362299]
[1754596470607,0.85611169,780.16,778.97,0.85362299]
[1754596470911,0.85611169,780.15,778.97,0.85362299]
[1754596471210,0.85611169,780.14,778.97,0.85362299]
[1754596471408,0.85611169,780.13,778.97,0.85362299]
[1754596471605,0.85611169,780.12,778.97,0.85362299]
[1754596471811,0.85611169,780.11,778.98,0.85362299]
[1754596472013,0.85611169,780.1,778.98,0.85362299]
[1754596472312,0.814,780.14,778.99,0.85362299]
[1754596472514,0.85605196,780.13,778.99,0.85362299]
[1754596472713,0.85605196,780.12,778.99,0.85362299]
[1754596472912,0.85605196,780.11,778.99,0.85362299]
[1754596473112,0.85605196,780.1,779.0,0.85362299]
[1754596473310,0.85605196,780.09,779.0,0.85362299]
[1754596473513,0.85605196,780.08,779.0,0.85362299]
[1754596473716,0.85605196,780.07,779.0,0.85362299]
[1754596473913,0.85605196,780.06,779.0,0.85362299]
[1754596474117,0.85605196,780.05,779.01,0.85362299]
[1754596474413,0.814,780.14,778.88,0.838]
[1754596474414,0.85605196,780.04,779.02,0.85362299]
[1754596474614,0.85605196,780.03,779.02,0.85362299]
[1754596474816,0.85605196,780.02,779.05,0.85362299]
[1754596475019,0.85605196,780.01,779.06,0.85362299]
[1754596475218,0.85605196,780.0,779.06,0.85362299]
[1754596475515,0.85605196,779.99,779.08,0.85362299]
[1754596475813,0.85605196,779.98,779.08,0.85362299]
[1754596476015,0.85605196,779.97,779.08,0.85362299]
[1754596476213,0.85605196,779.96,779.08,0.85362299]
[1754596476415,0.85605196,779.95,779.08,0.85362299]
[1754596476618,0.85605196,779.94,779.08,0.85362299]
[1754596476818,0.85605196,779.93,779.06,0.85362299]
[1754596477119,0.85605196,779.92,779.07,0.85362299]
[1754596477318,0.85605196,779.91,779.06,0.85362299]
[1754596477516,0.85605196,779.9,779.07,0.85362299]
[1754596477720,0.85605196,779.89,779.07,0.85362299]
[1754596477922,0.85605196,779.88,779.07,0.85362299]
[1754596478121,0.85605196,779.87,779.1,0.85362299]
[1754596478318,0.85999391,780.1,779.09,0.85362299]
[1754596478518,1.71685773,780.09,779.1,0.85362299]
[1754596478718,0.85686382,780.08,779.11,0.85362299]
[1754596478920,0.85686382,780.07,779.11,0.85362299]
[1754596479117,0.85686382,780.06,779.11,0.85362299]
[1754596479320,0.85686382,780.05,779.11,0.85362299]
[1754596479521,0.85686382,780.04,779.1,0.85362299]
[1754596479818,0.85686382,780.03,779.1,0.85362299]
[1754596480122,0.85686382,780.02,779.11,0.85362299]
[1754596480419,0.814,780.14,778.88,0.838]
[1754596480420,0.85686382,780.01,779.12,0.85362299]
[1754596480624,0.85686382,780.0,779.09,0.85362299]
[1754596480824,0.85686382,779.99,779.06,0.85362299]
[1754596481123,0.85686382,779.98,779.06,0.85362299]
[1754596481421,0.85686382,779.97,779.06,0.85362299]
[1754596481619,0.85686382,779.96,779.07,0.85362299]
[1754596481820,0.85686382,779.95,779.07,0.85362299]
[1754596482021,0.85686382,779.94,779.07,0.85362299]
[1754596482220,0.85686382,779.93,779.07,0.85362299]
[1754596482419,0.85686382,779.92,779.07,0.85362299]
[1754596482621,0.85686382,779.91,779.07,0.85362299]
[1754596482825,0.85686382,779.9,779.02,0.85362299]
[1754596483121,0.85686382,779.89,779.01,0.85362299]
[1754596483320,0.85686382,779.88,778.99,0.85362299]
[1754596483520,0.85686382,779.87,779.0,0.85362299]
[1754596483721,0.85686382,779.86,779.0,0.85362299]
[1754596483921,0.85686382,779.85,779.0,0.85362299]
[1754596484222,0.85686382,779.84,778.94,0.85362299]
[1754596484423,0.85686382,779.84,778.74,1.1423101]
[1754596484424,0.85686382,779.83,778.91,0.85362299]
[1754596484622,0.85686382,779.82,778.95,0.817]
[1754596484922,0.85686382,779.81,778.95,0.817]
[1754596485123,0.85686382,779.8,778.95,0.817]
[1754596485325,0.85686382,779.79,778.95,0.817]
[1754596485525,0.85686382,779.78,778.95,0.817]
[1754596485727,0.85686382,779.77,778.95,0.817]
[1754596485930,0.85686382,779.76,778.95,0.817]
[1754596486129,0.85686382,779.75,778.95,0.817]
[1754596486330,0.85686382,779.74,778.95,0.817]
[1754596486628,0.85686382,779.73,778.95,0.817]
[1754596486925,0.85686382,779.72,778.95,0.817]
[1754596487328,0.85814782,779.71,778.95,0.817]
[1754596487528,0.85814782,779.7,778.95,0.817]
[1754596487726,0.85814782,779.69,778.95,0.817]
[1754596487926,0.85817077,779.68,778.95,0.817]
[1754596488231,0.85817077,779.67,778.96,0.85362299]
[1754596488524,0.85817077,779.66,778.95,0.817]
[1754596488829,0.85817077,779.65,778.95,0.817]
[1754596489023,0.85817077,779.64,778.95,0.817]
[1754596489224,0.85817077,779.63,778.95,0.817]
[1754596489429,0.85817077,779.62,778.95,0.817]
[1754596489730,0.85817077,779.61,778.95,0.817]
[1754596489927,0.85817077,779.6,778.95,0.817]
[1754596490125,0.22326298,779.64,778.95,0.817]
[1754596490330,0.85836707,779.63,778.95,0.817]
[1754596490629,0.85836707,779.62,778.95,0.817]
[1754596490829,0.85836707,779.61,778.95,0.817]
[1754596491027,0.85836707,779.6,778.95,0.817]
[1754596491235,0.85836707,779.59,778.95,0.817]
[1754596491431,0.85836707,779.58,778.95,0.817]
[1754596491631,0.22326298,779.64,778.95,0.817]
[1754596491830,0.85839897,779.63,778.95,0.817]
[1754596492131,0.85839897,779.62,778.95,0.817]
[1754596492430,0.85839897,779.61,778.95,0.817]
[1754596492632,0.85839897,779.6,778.95,0.817]
[1754596492830,0.85839897,779.59,778.95,0.817]
[1754596493027,0.85844101,779.58,778.95,0.817]
[1754596493231,0.85844101,779.57,778.95,0.817]
[1754596493432,0.85844101,779.56,778.95,0.817]
[1754596493733,0.85844101,779.55,778.95,0.817]
[1754596493928,0.85844101,779.54,778.95,0.817]
[1754596494231,0.85844101,779.53,778.95,0.817]
[1754596494431,0.85844101,779.52,778.95,0.817]
[1754596494632,0.85844101,779.51,778.95,0.817]
[1754596494828,0.22326298,779.64,778.95,0.817]
[1754596495027,0.85855202,779.63,778.95,0.817]
[1754596495232,0.85855202,779.62,778.95,0.817]
[1754596495529,0.22326298,779.64,778.95,0.817]
[1754596495530,0.85855202,779.61,778.95,0.817]
[1754596495728,0.85855202,779.6,778.95,0.817]
[1754596495935,0.85854984,779.59,778.95,0.817]
[1754596496233,0.85854984,779.58,778.95,0.817]
[1754596496535,0.22326298,779.64,778.95,0.817]
[1754596496735,0.85854233,779.63,778.95,0.817]
[1754596496935,0.85854233,779.62,778.95,0.817]
[1754596497131,0.85854233,779.61,778.95,0.817]
[1754596497432,0.22326298,779.64,778.95,0.817]
[1754596497636,0.85850235,779.63,778.95,0.817]
[1754596497935,0.22326298,779.64,778.95,0.817]
[1754596498236,0.85849938,779.63,778.95,0.817]
[1754596498432,0.22326298,779.64,778.95,0.817]
[1754596498735,0.85856797,779.63,778.95,0.817]
[1754596498933,0.22326298,779.64,778.95,0.817]
[1754596499130,0.85857094,779.63,778.95,0.817]
[1754596499330,0.22326298,779.64,778.95,0.817]
[1754596499535,0.8587057,779.63,778.95,0.817]
[1754596499836,0.22326298,779.64,778.95,0.817]
[1754596500036,0.8587057,779.63,778.95,0.817]
[1754596500236,0.85870569,779.62,778.95,0.817]
[1754596500436,0.85870569,779.61,778.95,0.817]
[1754596500637,0.85870569,779.6,778.95,0.817]
[1754596500833,0.22323863,779.82,778.95,0.817]
[1754596501136,0.85858616,779.81,778.97,0.85362299]
[1754596501337,0.85858616,779.8,778.97,0.85362299]
[1754596501535,0.85858616,779.79,778.98,0.85362299]
[1754596501736,0.85858616,779.78,778.96,0.85362299]
[1754596501937,0.85858616,779.77,778.96,0.85362299]
[1754596502236,0.85858616,779.76,778.97,0.85362299]
[1754596502436,0.85858616,779.75,778.97,0.85362299]
[1754596502632,0.85858616,779.74,778.97,0.85362299]
[1754596502837,0.85858616,779.73,778.99,0.85362299]
[1754596503037,0.85858616,779.72,778.99,0.85362299]
[1754596503334,0.85858616,779.71,779.0,0.85362299]
[1754596503538,0.85858616,779.7,779.0,0.85362299]
[1754596503737,0.22323863,779.82,779.0,0.85362299]
[1754596503936,0.85905053,779.81,779.0,0.85362299]
[1754596504139,0.85905053,779.8,779.0,0.85362299]
[1754596504337,0.85905053,779.79,779.01,0.85362299]
[1754596504538,0.85905053,779.78,779.02,0.85362299]
[1754596504836,0.22323863,779.82,779.02,0.85362299]
[1754596505136,0.85922593,779.81,779.01,0.85362299]
[1754596505439,0.85922593,779.8,779.02,0.85362299]
[1754596505639,0.85922593,779.79,779.02,0.85362299]
[1754596505839,0.85922593,779.78,779.02,0.85362299]
[1754596506034,0.85922593,779.77,779.02,0.85362299]
[1754596506237,0.85922593,779.76,779.02,0.85362299]
[1754596506436,0.85922593,779.75,779.03,0.85362299]
[1754596506636,0.22323863,779.82,779.03,0.85362299]
[1754596506637,0.85922593,779.74,779.03,0.85362299]
[1754596506835,0.85922593,779.73,779.03,0.85362299]
[1754596507040,0.85922593,779.72,779.09,0.85362299]
[1754596507242,0.85922593,779.71,779.08,0.85362299]
[1754596507541,0.85922593,779.7,779.09,0.85362299]
[1754596507741,0.85922593,779.69,779.09,0.85362299]
[1754596508036,0.22323863,779.82,779.08,0.85362299]
[1754596508236,0.86052616,779.81,779.06,0.85362299]
[1754596508441,0.22323863,779.82,779.06,0.85362299]
[1754596508641,0.86055038,779.81,779.06,0.85362299]
[1754596508837,0.86055038,779.8,779.06,0.85362299]
[1754596509142,0.86055038,779.79,779.07,1.057]
[1754596509341,0.86055038,779.78,779.08,0.85362299]
[1754596509540,0.86055038,779.77,779.08,0.85362299]
[1754596509740,0.86055038,779.76,779.08,0.85362299]
[1754596509936,0.86055038,779.75,779.08,0.85362299]
[1754596510243,0.86055038,779.74,779.08,0.85362299]
[1754596510442,0.86055038,779.73,779.08,0.85362299]
[1754596510737,0.86055038,779.72,779.08,0.85362299]
[1754596510938,0.86055038,779.71,779.08,0.85362299]
[1754596511240,0.86055038,779.7,779.08,0.85362299]
[1754596511441,0.86055038,779.69,779.08,0.85362299]
[1754596511642,0.22323863,779.82,779.08,0.85362299]
[1754596511937,0.8605711,779.81,779.08,0.85362299]
[1754596512137,0.8605711,779.8,779.08,0.85362299]
[1754596512441,0.8605711,779.79,779.08,0.85362299]
[1754596512639,0.733,779.79,779.09,0.85362299]
[1754596512839,0.86056157,779.78,779.08,0.85362299]
[1754596513040,0.86056157,779.77,779.08,0.85362299]
[1754596513236,0.733,779.79,779.08,0.85362299]
[1754596513237,0.86056157,779.76,779.08,0.85362299]
[1754596513441,0.86056157,779.75,779.08,0.85362299]
[1754596513641,0.86056157,779.74,779.08,0.85362299]
[1754596513842,0.733,779.79,779.11,0.85362299]
[1754596514041,0.8605626,779.78,779.11,0.85362299]
[1754596514242,0.8605626,779.77,779.11,0.85362299]
[1754596514443,0.8605626,779.76,779.13,0.85362299]
[1754596514642,0.8605626,779.75,779.13,0.85362299]
[1754596514840,0.8605626,779.74,779.13,0.85362299]
[1754596515042,0.8605626,779.74,779.07,1.057]
[1754596515043,0.733,779.79,779.18,0.85362299]
[1754596515244,0.733,779.79,779.16,0.85362299]
[1754596515441,0.733,779.79,779.19,0.85362299]
[1754596516942,0.733,779.79,779.2,0.85362299]
[1754596517148,0.733,779.79,779.19,0.85362299]
[1754596520245,0.733,779.79,779.18,0.85362299]
[1754596521247,0.733,779.79,779.19,0.85362299]
[1754596521446,0.733,779.79,779.18,0.85362299]
[1754596523354,0.733,779.79,779.17,0.85362299]
[1754596523654,0.733,779.79,779.18,1.129]
[1754596525055,0.733,779.79,779.19,0.85362299]
[1754596526053,0.733,779.79,779.18,1.98262299]
[1754596529359,0.733,779.79,779.18,1.129]
[1754596535659,0.85996263,779.78,779.18,1.129]
[1754596535862,0.733,779.79,779.18,1.129]
[1754596536162,0.85996263,779.78,779.18,1.129]
[1754596536363,0.85996263,779.77,779.18,1.129]
[1754596536558,0.85996263,779.76,779.18,1.129]
[1754596536861,0.85996263,779.75,779.18,1.129]
[1754596537063,0.85996263,779.74,779.18,1.129]
[1754596537362,0.85996263,779.73,779.18,1.129]
[1754596537562,0.85996263,779.72,779.18,1.129]
[1754596537763,0.733,779.79,779.18,1.129]
[1754596537964,0.86076188,779.78,779.18,1.129]
[1754596538165,0.86076188,779.77,779.18,1.129]
[1754596538364,0.86076188,779.76,779.18,1.129]
[1754596538567,0.86076188,779.75,779.18,1.129]
[1754596538861,0.86076188,779.74,779.18,1.129]
[1754596539062,0.733,779.79,779.18,1.129]
[1754596539063,0.86076188,779.73,779.18,1.129]
[1754596539260,0.733,779.79,779.18,1.129]
[1754596539460,0.86079452,779.78,779.18,1.129]
[1754596539662,0.86079452,779.77,779.18,1.129]
[1754596539866,0.86079452,779.76,779.18,1.129]
[1754596540066,0.86079452,779.75,779.18,1.129]
[1754596540267,0.86079452,779.74,779.18,1.129]
[1754596540465,0.86079452,779.73,779.18,1.129]
[1754596540669,0.733,779.79,779.18,1.129]
[1754596540866,0.86082799,779.78,779.18,1.129]
[1754596541065,0.86082799,779.77,779.18,1.129]
[1754596541264,1.7208219,779.76,779.18,1.129]
[1754596541565,0.85999391,779.71,779.18,1.129]
[1754596541765,1.7208219,779.7,779.18,1.129]
[1754596541965,0.86082799,779.69,779.18,1.129]
[1754596542669,1.7208219,779.69,779.18,1.129]
[1754596542964,1.7208219,779.68,779.18,1.129]
[1754596543164,0.86082799,779.67,779.18,1.129]
[1754596543469,0.86082799,779.66,779.18,1.129]
[1754596543669,0.86082799,779.65,779.18,1.129]
[1754596543871,0.86082799,779.64,779.18,1.129]
[1754596544169,0.86082799,779.63,779.18,1.129]
[1754596544364,0.86082799,779.62,779.18,1.129]
[1754596544566,0.86082799,779.61,779.18,1.129]
[1754596544768,0.86082799,779.6,779.18,1.129]
[1754596545065,0.733,779.79,779.18,1.129]
[1754596545066,0.86082799,779.59,779.18,1.129]
[1754596545368,0.86082799,779.58,779.18,1.129]
[1754596545664,0.86082799,779.57,779.18,1.129]
[1754596545967,0.86082799,779.56,779.18,1.129]
[1754596546166,0.86082799,779.55,779.18,1.129]
[1754596546369,0.733,779.79,779.18,1.129]
[1754596546569,0.8606607,779.78,779.18,1.129]
[1754596546766,0.8606607,779.77,779.18,1.129]
[1754596547067,0.8606607,779.76,779.18,1.129]
[1754596547366,0.8606607,779.75,779.18,1.129]
[1754596547566,0.8606607,779.74,779.18,1.129]
[1754596547870,0.8606607,779.73,779.18,1.129]
[1754596548073,0.733,779.79,779.18,1.129]
[1754596548273,0.86056072,779.78,779.18,1.129]
[1754596548468,0.86237774,779.74,779.18,1.129]
[1754596548669,0.86237774,779.72,779.18,1.129]
[1754596548868,0.86056072,779.71,779.18,1.129]
[1754596549068,0.86056072,779.7,779.18,1.129]
[1754596549267,0.86056072,779.69,779.18,1.129]
[1754596549568,0.86056072,779.68,779.18,1.129]
[1754596549767,0.86056072,779.67,778.63,0.8599871]
[1754596549968,0.86056072,779.66,778.62,0.8599871]
[1754596550167,0.86056072,779.65,778.62,0.8599871]
[1754596550468,0.86056072,779.64,778.62,0.8599871]
[1754596550672,0.86237774,779.58,778.7,0.8599871]
[1754596550869,1.72293846,779.57,778.7,0.8599871]
[1754596551067,1.72277797,779.56,778.7,0.8599871]
[1754596551271,0.86040023,779.55,778.7,0.8599871]
[1754596551468,0.86040023,779.54,778.7,0.8599871]
[1754596551771,0.86040023,779.53,778.69,0.8599871]
[1754596551967,0.86040023,779.52,778.69,0.8599871]
[1754596552171,0.86040023,779.51,778.69,0.8599871]
[1754596552372,0.86040023,779.5,778.62,0.8599871]
[1754596552571,0.86040023,779.49,778.59,0.8599871]
[1754596552769,0.86237774,779.43,778.53,0.8599871]
[1754596553068,1.72277797,779.42,778.52,0.8599871]
[1754596553273,0.86040023,779.41,778.54,1.125]
[1754596553467,1.125,779.42,778.54,1.125]
[1754596553468,0.86040023,779.4,778.54,1.125]
[1754596553671,0.86040023,779.39,778.54,1.125]
[1754596553869,0.86040023,779.38,778.54,1.125]
[1754596554069,1.125,779.42,778.54,1.9849871]
[1754596554270,0.86014062,779.41,778.54,1.9849871]
[1754596554468,0.86014062,779.4,778.54,1.9849871]
[1754596554770,0.86014062,779.39,778.54,1.9849871]
[1754596554971,0.86014062,779.38,778.54,1.9849871]
[1754596555169,0.86005446,779.37,778.54,1.9849871]
[1754596555370,0.86005446,779.36,778.54,1.9849871]
[1754596555677,0.86005446,779.35,778.55,0.8599871]
[1754596555875,0.86005446,779.34,778.55,0.8599871]
[1754596556072,0.86005446,779.33,778.55,0.8599871]
[1754596556276,0.86005446,779.32,778.59,0.8599871]
[1754596556473,0.86005446,779.31,778.59,0.8599871]
[1754596556673,0.86005446,779.3,778.59,0.8599871]
[1754596556874,1.125,779.42,778.59,0.8599871]
[1754596557074,0.85952793,779.41,778.58,0.8599871]
[1754596557275,0.85952793,779.4,778.59,0.8599871]
[1754596557474,0.85952793,779.39,778.59,0.8599871]
[1754596557678,0.85952793,779.38,778.59,0.8599871]
[1754596557974,1.98737774,779.42,778.54,1.125]
[1754596557975,0.85952793,779.37,778.66,0.8599871]
[1754596558180,1.125,779.42,778.72,0.8599871]
[1754596558381,0.85908481,779.41,778.68,0.8599871]
[1754596558579,0.85908481,779.4,778.67,0.8599871]
[1754596558783,1.125,779.42,778.67,0.8599871]
[1754596558977,0.85901745,779.41,778.68,0.8599871]
[1754596559178,1.125,779.42,778.69,0.8599871]
[1754596559380,0.85893354,779.41,778.68,0.8599871]
[1754596559584,0.85893354,779.4,778.68,0.8599871]
[1754596559782,1.125,779.42,778.68,0.8599871]
[1754596559986,0.8589364,779.41,778.54,1.125]
[1754596560280,0.8589364,779.4,778.68,0.85939673]
[1754596560484,0.8589364,779.39,778.68,0.85939673]
[1754596560685,1.125,779.42,778.68,0.85939673]
[1754596560985,0.85893343,779.41,778.68,0.85939673]
[1754596561181,1.125,779.42,778.67,0.85939673]
[1754596561381,0.85893343,779.41,778.67,0.85939673]
[1754596561586,0.85882255,779.4,778.65,0.85939673]
[1754596561882,0.85883255,779.39,778.65,0.85939673]
[1754596562085,1.125,779.42,778.66,0.85939673]
[1754596562285,0.85876806,779.41,778.63,0.85939673]
[1754596562481,0.85876806,779.4,778.63,0.85939673]
[1754596562680,1.125,779.42,778.61,0.85939673]
[1754596563086,1.125,779.42,778.62,0.85939673]
[1754596563283,1.125,779.42,778.54,1.125]
[1754596563284,1.125,779.42,778.61,0.85939673]
[1754596564085,1.125,779.42,778.63,0.85939673]
[1754596564490,1.125,779.42,778.64,0.85939673]
[1754596564688,1.125,779.42,778.68,0.85939673]
[1754596564887,1.125,779.42,778.7,0.85939673]
[1754596565091,1.125,779.42,778.8,0.85939673]
[1754596565289,1.125,779.42,778.84,0.85939673]
[1754596566295,1.125,779.42,778.83,0.85939673]
[1754596567298,1.125,779.42,778.54,1.125]
[1754596567299,1.125,779.42,778.94,0.85939673]
[1754596567796,1.125,779.42,778.95,0.85939673]
[1754596571899,1.125,779.42,778.94,0.85939673]
[1754596572095,1.125,779.42,778.98,0.85939673]
[1754596572699,1.125,779.42,779.01,0.85939673]
[1754596573297,1.125,779.42,778.96,0.85939673]
[1754596573798,1.125,779.42,779.0,0.85939673]
[1754596574504,1.125,779.42,779.05,0.85939673]
[1754596574705,1.125,779.42,779.06,0.85939673]
[1754596576005,1.125,779.42,779.07,0.85939673]
[1754596578308,1.125,779.42,779.1,0.85939673]
[1754596578608,1.125,779.42,779.12,0.85939673]
[1754596578803,1.125,779.42,779.15,0.85939673]
[1754596579008,1.125,779.42,779.18,0.85939673]
[1754596579203,1.125,779.42,779.15,0.85939673]
[1754596579403,1.125,779.42,779.11,0.85939673]
[1754596579807,1.125,779.42,779.12,0.85939673]
[1754596580104,1.125,779.42,779.08,0.85939673]
[1754596581807,1.125,779.42,779.09,0.85939673]
[1754596584214,1.125,779.42,779.08,0.85939673]
[1754596584410,1.125,779.42,779.1,0.807]
[1754596585213,0.22321572,780.02,779.1,1.66639673]
[1754596585413,0.8576615,780.01,779.15,0.85939673]
[1754596585608,0.8576615,780.0,779.15,0.85939673]
[1754596585911,0.8576615,779.99,779.15,0.85939673]
[1754596586114,0.8576615,779.98,779.15,0.85939673]
[1754596586408,0.8576615,779.97,779.15,0.85939673]
[1754596586609,0.22321572,780.02,779.15,0.85939673]
[1754596586610,0.8576615,779.96,779.15,0.85939673]
[1754596586912,0.8576615,779.95,779.15,0.85939673]
[1754596587107,0.8576615,779.94,779.15,0.85939673]
[1754596587308,0.8576615,779.93,779.15,0.85939673]
[1754596587512,0.8576615,779.92,779.19,0.85939673]
[1754596587809,0.8576615,779.91,779.19,0.85939673]
[1754596588013,0.829,779.93,779.2,0.85939673]
[1754596588212,0.85753546,779.92,779.2,0.85939673]
[1754596588413,0.85753546,779.91,779.2,0.85939673]
[1754596588713,0.829,779.93,779.2,0.85939673]
[1754596589010,0.85747439,779.92,779.2,0.85939673]
[1754596589213,0.85747439,779.91,779.2,0.85939673]
[1754596589509,0.829,779.93,779.19,0.85939673]
[1754596589717,0.85739774,779.92,779.19,0.85939673]
[1754596589914,0.85739774,779.91,779.19,0.85939673]
[1754596590215,0.829,779.93,779.19,0.85939673]
[1754596590414,0.85732341,779.92,779.19,0.85939673]
[1754596590612,0.85732341,779.91,779.19,0.85939673]
[1754596590809,0.829,779.93,779.19,0.85939673]
[1754596591009,0.85732638,779.92,779.19,0.85939673]